[Event "Lueneburg Open-B 2019"]
[Site "Lueneburg"]
[Date "2019.08.03"]
[Round "1.1"]
[White "Thomas, Jeremy"]
[Black "Seeber, Helmut"]
[Result "0-1"]
[ECO "C54"]
[WhiteElo "1717"]
[BlackElo "1580"]
[Annotator "NA"]
[PlyCount "94"]
[EventDate "2019.08.03"]
[EventType "swiss"]
[EventCountry "GER"]
[SourceTitle "playchess.com"]
[Source "ChessBase"]
[SourceQuality "1"]
[TimeControl "40/5400+30:1800+30"]

1. e4 {[%emt 0:00:00]} e5 {[%emt 0:00:00]} 2. Nf3 {[%emt 0:00:10]} Nc6 {[%emt 0:00:00]} 3. Bc4 {[%emt 0:00:02]} Bc5 {[%emt 0:00:05]} 4. c3 {[%emt 0:00:07]} Nf6 {[%emt 0:00:31]} 5. d3 {[%emt 0:00:01]} a6 {[%emt 0:01:52]} 6. Bb3 {[%emt 0:00:22]} d6 {[%emt 0:00:49]} 7. Nbd2 {[%emt 0:00:17]} O-O {[%emt 0:00:38]} 8. Nf1 {[%emt 0:00:12]} Ng4 {[%emt 0:00:31]} 9. Ne3 {[%emt 0:00:25]} Na5 {[%emt 0:01:04]} 10. Bc2 {[%emt 0:01:30]} Nc6 {[%emt 0:00:25]} 11. h3 {[%emt 0:02:05]} Nh6 {[%emt 0:01:59]} 12. b4 {[%emt 0:02:52]} Ba7 {[%emt 0:00:45]} 13. Bb3 {[%emt 0:00:37]} Kh8 {[%emt 0:01:02]} 14. O-O {[%emt 0:08:24]} f5 {[%emt 0:00:27]} 15. Nxf5 {[%emt 0:05:12]} Nxf5 {[%emt 0:00:24]} 16. exf5 {[%emt 0:01:03]} Bxf5 {[%emt 0:00:16]} 17. Ng5 {[%emt 0:03:38]} Qf6 {[%emt 0:01:29]} 18. Qh5 {[%emt 0:01:39]} Bg6 {[%emt 0:03:03]} 19. Qe2 {[%emt 0:01:58]} Rae8 {[%emt 0:01:29]} 20. Ne4 {[%emt 0:01:08]} Qe7 {[%emt 0:04:47]} 21. Kh2 {[%emt 0:07:26]} Nd8 {[%emt 0:01:46]} 22. Ng5 {[%emt 0:26:50]} c6 {[%emt 0:03:17]} 23. a4 {[%emt 0:02:14]} d5 {[%emt 0:01:54]} 24. b5 {[%emt 0:00:56]} Ne6 {[%emt 0:05:59]} 25. Nxe6 {[%emt 0:02:36]} Qxe6 {[%emt 0:00:18]} 26. bxa6 {[%emt 0:04:43]} bxa6 {[%emt 0:07:33]} 27. Be3 {[%emt 0:01:21]} Bb8 {[%emt 0:00:26]} 28. Kh1 {[%emt 0:01:16]} Qd6 {[%emt 0:01:41]} 29. g3 {[%emt 0:00:58]} d4 {[%emt 0:04:28]} 30. Bc1 {[%emt 0:04:41]} c5 {[%emt 0:03:38]} 31. cxd4 {[%emt 0:07:33]} exd4 {[%emt 0:03:35]} 32. Qc2 {[%emt 0:01:36]} Qc6+ {[%emt 0:08:18]} 33. Kg1 {[%emt 0:02:02]} Rf3 {[%emt 0:00:15]} 34. Bc4 {[%emt 0:02:20]} Ref8 {[%emt 0:03:33]} 35. Ba3 {[%emt 0:02:21]} Bxg3 {[%emt 0:01:22]} 36. fxg3 {[%emt 0:00:25]} Rxg3+ {[%emt 0:07:00]} 37. Kh2 {[%emt 0:00:01]} Rff3 {[%emt 0:00:32]} 38. Rxf3 {[%emt 0:02:54]} Qxf3 {[%emt 0:00:13]} 39. Be6 {[%emt 0:00:16]} Bxd3 {[%emt 0:02:15]} 40. Qb2 {[%emt 0:02:02]} Qf4 {[%emt 0:04:26]} 41. Bd5 {[%emt 0:09:18]} Rg5+ {[%emt 0:04:01]} 42. Kh1 {[%emt 0:00:06]} Rxd5 {[%emt 0:00:18]} 43. Re1 {[%emt 0:00:39]} Be4+ {[%emt 0:01:02]} 44. Rxe4 {[%emt 0:00:11]} Qxe4+ {[%emt 0:52:34]} 45. Kh2 Qf4+ {[%emt 0:00:00]} 46. Kh1 {[%emt 0:26:33]} h6 {[%emt 0:00:00]} 47. Qb8+ {[%emt 0:00:00]} Qxb8 {[%emt 0:00:00]} 0-1

[Event "Lueneburg Open-B 2019"]
[Site "Lueneburg"]
[Date "2019.08.03"]
[Round "1.2"]
[White "Thomas, Vincent"]
[Black "Rewerts, Ingo"]
[Result "0-1"]
[ECO "A52"]
[WhiteElo "1975"]
[BlackElo "1792"]
[Annotator "NA"]
[PlyCount "112"]
[EventDate "2019.08.03"]
[EventType "swiss"]
[EventCountry "GER"]
[SourceTitle "playchess.com"]
[Source "ChessBase"]
[SourceQuality "1"]
[TimeControl "40/5400+30:1800+30"]

1. d4 {[%emt 0:00:00]} Nf6 {[%emt 0:00:30]} 2. c4 {[%emt 0:00:54]} e5 {[%emt 0:00:20]} 3. dxe5 {[%emt 0:02:19]} Ng4 {[%emt 0:00:07]} 4. Nf3 {[%emt 0:01:19]} Nc6 {[%emt 0:00:17]} 5. g3 {[%emt 0:01:38]} Bc5 {[%emt 0:01:56]} 6. e3 {[%emt 0:03:38]} Ngxe5 {[%emt 0:00:52]} 7. Nxe5 {[%emt 0:03:05]} Nxe5 {[%emt 0:00:11]} 8. Nc3 {[%emt 0:04:01]} Bb4 {[%emt 0:07:13]} 9. Bd2 {[%emt 0:04:27]} O-O {[%emt 0:07:05]} 10. a3 {[%emt 0:05:20]} Be7 {[%emt 0:04:43]} 11. Be2 {[%emt 0:06:38]} c6 {[%emt 0:06:23]} 12. b4 {[%emt 0:05:30]} d6 {[%emt 0:01:16]} 13. O-O {[%emt 0:05:42]} Be6 {[%emt 0:05:42]} 14. c5 {[%emt 0:08:21]} dxc5 {[%emt 0:02:23]} 15. bxc5 {[%emt 0:00:58]} Bh3 {[%emt 0:02:45]} 16. Re1 {[%emt 0:01:23]} Bxc5 {[%emt 0:00:34]} 17. Bf1 {[%emt 0:08:20]} Qd7 {[%emt 0:04:24]} 18. Qh5 {[%emt 0:05:51]} Bxf1 {[%emt 0:03:34]} 19. Rxf1 {[%emt 0:01:32]} f6 {[%emt 0:06:46]} 20. Ne4 {[%emt 0:02:12]} Qd5 {[%emt 0:01:24]} 21. f3 {[%emt 0:04:25]} g6 {[%emt 0:02:39]} 22. Qh4 {[%emt 0:02:12]} Be7 {[%emt 0:15:49]} 23. Bb4 {[%emt 0:05:48]} g5 {[%emt 0:07:37]} 24. Qh5 {[%emt 0:01:34]} Bxb4 {[%emt 0:00:34]} 25. axb4 {[%emt 0:00:37]} g4 {[%emt 0:01:32]} 26. Qh6 {[%emt 0:03:54]} Nxf3+ {[%emt 0:01:53]} 27. Rxf3 {[%emt 0:01:00]} Qxe4 {[%emt 0:01:02]} 28. Rf2 {[%emt 0:03:36]} Qg6 {[%emt 0:03:45]} 29. Qf4 {[%emt 0:00:44]} Rae8 {[%emt 0:01:07]} 30. Rxa7 {[%emt 0:02:16]} Re4 {[%emt 0:00:38]} 31. Qf5 {[%emt 0:01:21]} Qxf5 {[%emt 0:00:41]} 32. Rxf5 {[%emt 0:00:07]} Rxb4 {[%emt 0:00:11]} 33. Rf4 {[%emt 0:00:49]} Rxf4 {[%emt 0:01:00]} 34. gxf4 {[%emt 0:00:08]} Rf7 {[%emt 0:00:26]} 35. Kf2 {[%emt 0:00:22]} f5 {[%emt 0:00:27]} 36. Ke2 {[%emt 0:00:23]} h5 {[%emt 0:00:38]} 37. Kd3 {[%emt 0:00:53]} Rd7+ {[%emt 0:00:38]} 38. Kc3 {[%emt 0:00:28]} c5 {[%emt 0:01:06]} 39. Ra5 {[%emt 0:01:01]} b6 {[%emt 0:00:26]} 40. Ra6 {[%emt 0:01:03]} Rd6 {[%emt 0:02:07]} 41. Ra4 {[%emt 0:31:23]} Kf7 {[%emt 0:32:06]} 42. Ra7+ {[%emt 0:00:17]} Kg6 {[%emt 0:00:34]} 43. Ra8 {[%emt 0:00:48]} b5 {[%emt 0:00:23]} 44. Rb8 {[%emt 0:00:15]} b4+ {[%emt 0:00:55]} 45. Kc4 {[%emt 0:00:42]} Rd2 {[%emt 0:01:11]} 46. Kxc5 {[%emt 0:00:18]} Rxh2 {[%emt 0:00:13]} 47. Kd4 {[%emt 0:00:46]} g3 {[%emt 0:00:20]} 48. Rxb4 {[%emt 0:00:07]} g2 {[%emt 0:00:23]} 49. Rb6+ {[%emt 0:00:25]} Kf7 {[%emt 0:00:33]} 50. Rb7+ {[%emt 0:00:05]} Ke6 {[%emt 0:00:18]} 51. Rg7 {[%emt 0:00:06]} h4 {[%emt 0:00:25]} 52. e4 {[%emt 0:00:37]} fxe4 {[%emt 0:00:34]} 53. Kxe4 {[%emt 0:00:10]} Kf6 {[%emt 0:00:25]} 54. Rg5 {[%emt 0:00:19]} h3 {[%emt 0:00:07]} 55. Kf3 {[%emt 0:00:51]} Rh1 {[%emt 0:00:33]} 56. Kf2 {[%emt 0:00:26]} Rf1+ {[%emt 0:00:10]} 0-1

[Event "Lueneburg Open-B 2019"]
[Site "Lueneburg"]
[Date "2019.08.03"]
[Round "1.3"]
[White "Fomenkov, Alexander"]
[Black "Stolzenwald, Karl-Heinz"]
[Result "1-0"]
[ECO "A34"]
[WhiteElo "1779"]
[BlackElo "1600"]
[Annotator "NA"]
[PlyCount "115"]
[EventDate "2019.08.03"]
[EventType "swiss"]
[EventCountry "GER"]
[SourceTitle "playchess.com"]
[Source "ChessBase"]
[SourceQuality "1"]
[TimeControl "40/5400+30:1800+30"]

1. e4 {[%emt 0:00:00]} c5 {[%emt 0:00:00]} 2. Nf3 {[%emt 0:00:00]} Nc6 {[%emt 0:00:00]} 3. c4 {[%emt 0:00:02]} d6 {[%emt 0:00:18]} 4. h3 {[%emt 0:00:23]} Nf6 {[%emt 0:00:22]} 5. Nc3 {[%emt 0:00:13]} e6 {[%emt 0:00:22]} 6. d3 {[%emt 0:00:24]} Be7 {[%emt 0:00:48]} 7. Be2 {[%emt 0:00:28]} a6 {[%emt 0:00:14]} 8. O-O {[%emt 0:00:24]} h6 {[%emt 0:00:13]} 9. d4 {[%emt 0:01:00]} cxd4 {[%emt 0:00:14]} 10. Nxd4 {[%emt 0:00:10]} Bd7 {[%emt 0:01:54]} 11. Be3 {[%emt 0:06:13]} Nxd4 {[%emt 0:02:24]} 12. Bxd4 {[%emt 0:02:24]} O-O {[%emt 0:04:35]} 13. Bf3 {[%emt 0:01:59]} e5 {[%emt 0:00:47]} 14. Be3 {[%emt 0:00:21]} Be6 {[%emt 0:01:12]} 15. b3 {[%emt 0:00:28]} Nd7 {[%emt 0:01:36]} 16. Nd5 {[%emt 0:00:54]} Bxd5 {[%emt 0:03:44]} 17. Qxd5 {[%emt 0:00:40]} Qc7 {[%emt 0:01:31]} 18. Rfd1 {[%emt 0:00:43]} Nf6 {[%emt 0:00:28]} 19. Qd3 {[%emt 0:00:45]} Rfd8 {[%emt 0:00:56]} 20. Rac1 {[%emt 0:01:58]} Rac8 {[%emt 0:02:33]} 21. a3 {[%emt 0:02:00]} Qd7 {[%emt 0:01:35]} 22. Bb6 {[%emt 0:00:41]} Rf8 {[%emt 0:02:48]} 23. c5 {[%emt 0:07:02]} Rc6 {[%emt 0:00:15]} 24. a4 {[%emt 0:02:26]} Qc8 {[%emt 0:00:27]} 25. Qe3 {[%emt 0:15:37]} dxc5 {[%emt 0:02:15]} 26. a5 {[%emt 0:01:51]} Re8 {[%emt 0:12:20]} 27. Qc3 {[%emt 0:03:42]} Qe6 {[%emt 0:07:00]} 28. Qc2 {[%emt 0:07:31]} Rec8 {[%emt 0:02:46]} 29. Be2 {[%emt 0:00:41]} Bf8 {[%emt 0:06:40]} 30. Bc4 {[%emt 0:01:44]} Qe7 {[%emt 0:00:11]} 31. Qd3 {[%emt 0:06:10]} Nh5 {[%emt 0:05:12]} 32. g3 {[%emt 0:04:36]} Qg5 {[%emt 0:03:03]} 33. Kh2 {[%emt 0:03:16]} Rf6 {[%emt 0:01:53]} 34. Rc2 {[%emt 0:00:55]} Rd6 {[%emt 0:06:09]} 35. Bd5 {[%emt 0:09:04]} Nf6 {[%emt 0:01:35]} 36. b4 {[%emt 0:06:21]} Rd7 {[%emt 0:14:46]} 37. bxc5 {[%emt 0:01:58]} Qh5 {[%emt 0:00:52]} 38. Rdd2 {[%emt 0:01:14]} Nh7 {[%emt 0:04:44]} 39. Kg2 {[%emt 0:01:42]} Rc6 {[%emt 0:03:05]} 40. Qf3 {[%emt 0:06:21]} Qxf3+ {[%emt 0:01:36]} 41. Kxf3 {[%emt 0:30:09]} Rf6+ {[%emt 0:30:23]} 42. Kg2 {[%emt 0:00:12]} Ng5 {[%emt 0:01:40]} 43. Rb2 {[%emt 0:01:26]} Nf3 {[%emt 0:03:22]} 44. Rd1 {[%emt 0:03:16]} Nd4 {[%emt 0:00:47]} 45. f4 {[%emt 0:00:42]} Nc6 {[%emt 0:00:24]} 46. f5 {[%emt 0:00:00]} Nd4 {[%emt 0:00:00]} 47. Ba7 {[%emt 0:00:00]} Nb5 {[%emt 0:00:00]} 48. Bb6 {[%emt 0:00:00]} Nd4 {[%emt 0:00:00]} 49. g4 {[%emt 0:00:00]} g5 {[%emt 0:00:00]} 50. Kg3 {[%emt 0:00:00]} Kg7 {[%emt 0:00:00]} 51. Rdd2 {[%emt 0:00:00]} Nb5 {[%emt 0:00:00]} 52. Rh2 {[%emt 0:00:00]} Nc3 {[%emt 0:00:00]} 53. Rhd2 {[%emt 0:00:00]} Nb5 {[%emt 0:00:00]} 54. Bc4 {[%emt 0:00:00]} Nd4 {[%emt 0:00:00]} 55. Ba7 {[%emt 0:00:00]} Bxc5 {[%emt 0:00:00]} 56. Bxc5 {[%emt 0:00:00]} Rc7 {[%emt 0:00:00]} 57. Bxd4 {[%emt 0:00:00]} Rxc4 {[%emt 0:00:00]} 58. Bxe5 {[%emt 0:08:54]} 1-0

[Event "Lueneburg Open-B 2019"]
[Site "Lueneburg"]
[Date "2019.08.03"]
[Round "1.4"]
[White "Raedisch, Peter"]
[Black "Neumann, Lutz"]
[Result "1/2-1/2"]
[ECO "B30"]
[WhiteElo "1595"]
[BlackElo "1784"]
[Annotator "NA"]
[PlyCount "72"]
[EventDate "2019.08.03"]
[EventType "swiss"]
[EventCountry "GER"]
[SourceTitle "playchess.com"]
[Source "ChessBase"]
[SourceQuality "1"]
[TimeControl "40/5400+30:1800+30"]

1. e4 {[%emt 0:00:00]} c5 {[%emt 0:00:30]} 2. Bc4 {[%emt 0:01:13]} Nc6 {[%emt 0:00:54]} 3. Nf3 {[%emt 0:00:28]} e6 {[%emt 0:01:03]} 4. c3 {[%emt 0:00:19]} d6 {[%emt 0:01:07]} 5. d4 {[%emt 0:01:25]} cxd4 {[%emt 0:00:28]} 6. Nxd4 {[%emt 0:00:47]} Bd7 {[%emt 0:02:17]} 7. Nb5 {[%emt 0:03:22]} Bc8 {[%emt 0:06:51]} 8. Nd4 {[%emt 0:03:48]} Nxd4 {[%emt 0:05:39]} 9. Qxd4 {[%emt 0:01:42]} Bd7 {[%emt 0:02:50]} 10. O-O {[%emt 0:00:57]} Qf6 {[%emt 0:06:04]} 11. Qd3 {[%emt 0:01:58]} Bc6 {[%emt 0:02:42]} 12. Be3 {[%emt 0:04:17]} Qg6 {[%emt 0:02:24]} 13. f3 {[%emt 0:02:49]} a6 {[%emt 0:04:05]} 14. a4 {[%emt 0:00:15]} d5 {[%emt 0:01:06]} 15. exd5 {[%emt 0:01:21]} Qxd3 {[%emt 0:00:23]} 16. Bxd3 {[%emt 0:00:29]} Bxd5 {[%emt 0:00:20]} 17. Bb6 {[%emt 0:05:04]} Nf6 {[%emt 0:00:54]} 18. Nd2 {[%emt 0:01:02]} Nd7 {[%emt 0:02:28]} 19. Bd4 {[%emt 0:00:25]} Bc5 {[%emt 0:03:42]} 20. Bf2 {[%emt 0:00:49]} Bxf2+ {[%emt 0:03:33]} 21. Rxf2 {[%emt 0:00:20]} Ne5 {[%emt 0:04:29]} 22. Be4 {[%emt 0:01:04]} Rd8 {[%emt 0:04:27]} 23. Re2 {[%emt 0:05:27]} Nc6 {[%emt 0:07:16]} 24. Bxd5 {[%emt 0:06:10]} Rxd5 {[%emt 0:00:53]} 25. Rae1 {[%emt 0:00:51]} Kd8 {[%emt 0:04:37]} 26. Nb3 {[%emt 0:01:12]} Kc7 {[%emt 0:02:00]} 27. Rd2 {[%emt 0:00:23]} Rhd8 {[%emt 0:00:32]} 28. Rxd5 {[%emt 0:00:34]} Rxd5 {[%emt 0:00:11]} 29. Kf2 {[%emt 0:00:29]} Kb6 {[%emt 0:01:27]} 30. Re2 {[%emt 0:00:31]} Na5 {[%emt 0:06:59]} 31. Nxa5 {[%emt 0:01:10]} Kxa5 {[%emt 0:00:17]} 32. b3 {[%emt 0:00:34]} b5 {[%emt 0:02:42]} 33. axb5 {[%emt 0:00:32]} axb5 {[%emt 0:00:07]} 34. Re4 {[%emt 0:04:46]} Rd2+ {[%emt 0:02:39]} 35. Re2 {[%emt 0:00:27]} Rd3 {[%emt 0:01:20]} 36. Re3 {[%emt 0:04:25]} Rd2+ {[%emt 0:08:07]} 1/2-1/2

[Event "Lueneburg Open-B 2019"]
[Site "Lueneburg"]
[Date "2019.08.03"]
[Round "1.5"]
[White "Schulze, Lukas"]
[Black "Rempe, Janne"]
[Result "0-1"]
[ECO "A54"]
[WhiteElo "1724"]
[BlackElo "1594"]
[Annotator "NA"]
[PlyCount "80"]
[EventDate "2019.08.03"]
[EventType "swiss"]
[EventCountry "GER"]
[SourceTitle "playchess.com"]
[Source "ChessBase"]
[SourceQuality "1"]
[TimeControl "40/5400+30:1800+30"]

1. Nf3 {[%emt 0:00:00]} d6 {[%emt 0:00:00]} 2. d4 {[%emt 0:00:00]} Nf6 {[%emt 0:00:00]} 3. c4 {[%emt 0:00:00]} Nbd7 {[%emt 0:00:41]} 4. g3 {[%emt 0:00:36]} e5 {[%emt 0:00:19]} 5. dxe5 {[%emt 0:00:42]} dxe5 {[%emt 0:00:27]} 6. Bg2 {[%emt 0:01:36]} Be7 {[%emt 0:01:44]} 7. O-O {[%emt 0:01:41]} O-O {[%emt 0:01:10]} 8. Nc3 {[%emt 0:01:43]} c6 {[%emt 0:02:02]} 9. b3 {[%emt 0:02:43]} Qc7 {[%emt 0:01:22]} 10. Bb2 {[%emt 0:01:05]} Re8 {[%emt 0:01:36]} 11. Qc2 {[%emt 0:03:27]} Nf8 {[%emt 0:01:33]} 12. Rfd1 {[%emt 0:03:02]} Ng6 {[%emt 0:02:38]} 13. Ne4 {[%emt 0:05:13]} Be6 {[%emt 0:12:23]} 14. Nfg5 {[%emt 0:14:37]} Bd7 {[%emt 0:01:59]} 15. Nxf6+ {[%emt 0:05:10]} Bxf6 {[%emt 0:00:55]} 16. Ne4 {[%emt 0:00:18]} Be7 {[%emt 0:01:16]} 17. c5 {[%emt 0:02:37]} Rad8 {[%emt 0:04:22]} 18. Nd6 {[%emt 0:02:43]} Rf8 {[%emt 0:00:20]} 19. Qe4 {[%emt 0:10:34]} Be6 {[%emt 0:04:37]} 20. Bxe5 {[%emt 0:06:05]} Nxe5 {[%emt 0:00:45]} 21. Qxe5 {[%emt 0:08:25]} Bf6 {[%emt 0:00:58]} 22. Qf4 {[%emt 0:03:00]} Bxa1 {[%emt 0:01:08]} 23. Rxa1 {[%emt 0:00:09]} b6 {[%emt 0:03:14]} 24. b4 {[%emt 0:03:17]} bxc5 {[%emt 0:05:42]} 25. bxc5 {[%emt 0:00:15]} Qa5 {[%emt 0:05:09]} 26. Nb7 {[%emt 0:01:15]} Qxa2 {[%emt 0:01:47]} 27. Qe5 {[%emt 0:05:10]} Qb3 {[%emt 0:10:24]} 28. Nxd8 {[%emt 0:00:39]} Rxd8 {[%emt 0:00:07]} 29. Rxa7 {[%emt 0:03:27]} Rd1+ {[%emt 0:14:12]} 30. Bf1 {[%emt 0:00:13]} h6 {[%emt 0:02:37]} 31. Qe4 {[%emt 0:03:52]} g6 {[%emt 0:04:40]} 32. Qe5 {[%emt 0:03:19]} f6 {[%emt 0:06:14]} 33. Qxf6 {[%emt 0:03:50]} Rxf1+ {[%emt 0:01:04]} 34. Kxf1 {[%emt 0:01:59]} Qd1+ {[%emt 0:00:23]} 35. Kg2 {[%emt 0:00:03]} Bd5+ {[%emt 0:00:12]} 36. Kh3 {[%emt 0:02:13]} Qf1+ {[%emt 0:00:07]} 37. Kg4 {[%emt 0:01:34]} Qxe2+ {[%emt 0:00:51]} 38. f3 {[%emt 0:00:38]} Bxf3+ {[%emt 0:01:14]} 39. Kh3 {[%emt 0:01:47]} Qg2+ {[%emt 0:00:10]} 40. Kh4 {[%emt 0:00:15]} Qxh2# {[%emt 0:00:05]} 0-1

[Event "Lueneburg Open-B 2019"]
[Site "Lueneburg"]
[Date "2019.08.03"]
[Round "1.6"]
[White "Jessen, Bjarne"]
[Black "Ahrens, Gunnar"]
[Result "1-0"]
[ECO "C02"]
[WhiteElo "1569"]
[BlackElo "1764"]
[Annotator "NA"]
[PlyCount "91"]
[EventDate "2019.08.03"]
[EventType "swiss"]
[EventCountry "GER"]
[SourceTitle "playchess.com"]
[Source "ChessBase"]
[SourceQuality "1"]
[TimeControl "40/5400+30:1800+30"]

1. e4 {[%emt 0:00:00]} Nc6 {[%emt 0:00:00]} 2. Nf3 {[%emt 0:00:21]} e6 {[%emt 0:00:22]} 3. d4 {[%emt 0:01:32]} d5 {[%emt 0:01:15]} 4. e5 {[%emt 0:16:19]} Nge7 {[%emt 0:02:01]} 5. Bg5 {[%emt 0:03:43]} h6 {[%emt 0:01:05]} 6. Be3 {[%emt 0:12:31]} Nf5 {[%emt 0:05:19]} 7. Qd2 {[%emt 0:06:56]} Bb4 {[%emt 0:03:26]} 8. c3 {[%emt 0:02:57]} Be7 {[%emt 0:00:23]} 9. Bd3 {[%emt 0:02:45]} a6 {[%emt 0:17:51]} 10. O-O {[%emt 0:03:47]} g5 {[%emt 0:01:30]} 11. Qe2 {[%emt 0:01:49]} g4 {[%emt 0:03:24]} 12. Ne1 {[%emt 0:01:00]} h5 {[%emt 0:00:27]} 13. g3 {[%emt 0:03:23]} Bg5 {[%emt 0:03:45]} 14. Ng2 {[%emt 0:02:28]} Bd7 {[%emt 0:02:51]} 15. Nd2 {[%emt 0:00:29]} Qe7 {[%emt 0:01:12]} 16. f4 {[%emt 0:01:47]} Bh6 {[%emt 0:02:47]} 17. Bxf5 {[%emt 0:07:31]} exf5 {[%emt 0:00:24]} 18. c4 {[%emt 0:01:08]} Nb4 {[%emt 0:01:01]} 19. a3 {[%emt 0:02:34]} Nc2 {[%emt 0:01:47]} 20. Rac1 {[%emt 0:00:30]} Nxe3 {[%emt 0:00:44]} 21. Nxe3 {[%emt 0:00:52]} Bg7 {[%emt 0:03:37]} 22. Nxd5 {[%emt 0:00:55]} Qd8 {[%emt 0:00:27]} 23. Nf6+ {[%emt 0:07:43]} Kf8 {[%emt 0:00:17]} 24. Nxd7+ {[%emt 0:01:45]} Qxd7 {[%emt 0:00:03]} 25. Nb3 {[%emt 0:03:26]} Rh6 {[%emt 0:00:21]} 26. Qd3 {[%emt 0:00:39]} Rd8 {[%emt 0:01:37]} 27. d5 {[%emt 0:01:35]} Kg8 {[%emt 0:01:46]} 28. Nd4 {[%emt 0:00:46]} Rb6 {[%emt 0:01:40]} 29. b4 {[%emt 0:01:18]} c5 {[%emt 0:00:18]} 30. bxc5 {[%emt 0:00:58]} Rb2 {[%emt 0:00:19]} 31. Nxf5 {[%emt 0:02:34]} Bf8 {[%emt 0:00:17]} 32. d6 {[%emt 0:00:25]} Qc8 {[%emt 0:00:37]} 33. Qd4 {[%emt 0:03:29]} Rb3 {[%emt 0:00:31]} 34. Ne3 {[%emt 0:00:14]} Rxa3 {[%emt 0:01:32]} 35. Nd5 {[%emt 0:00:38]} Qf5 {[%emt 0:02:15]} 36. Nf6+ {[%emt 0:00:53]} Kg7 {[%emt 0:01:58]} 37. Qe4 {[%emt 0:01:03]} Kg6 {[%emt 0:00:22]} 38. Qxf5+ {[%emt 0:01:10]} Kxf5 {[%emt 0:00:02]} 39. Rb1 {[%emt 0:01:02]} Ra5 {[%emt 0:00:20]} 40. Rxb7 {[%emt 0:02:12]} Rxc5 {[%emt 0:00:38]} 41. Rc1 {[%emt 0:32:44]} Kg6 {[%emt 0:31:40]} 42. Nd7 {[%emt 0:00:00]} Rc6 {[%emt 0:00:00]} 43. c5 {[%emt 0:00:00]} Bg7 {[%emt 0:00:00]} 44. Nb8 {[%emt 0:00:00]} Rcc8 {[%emt 0:00:00]} 45. c6 {[%emt 0:00:00]} Bf8 {[%emt 0:00:00]} 46. d7 {[%emt 0:00:00]} 1-0

[Event "Lueneburg Open-B 2019"]
[Site "Lueneburg"]
[Date "2019.08.03"]
[Round "1.7"]
[White "Buetow, Ingo"]
[Black "Geissler, Karl-Heinz"]
[Result "1/2-1/2"]
[ECO "A36"]
[WhiteElo "1747"]
[BlackElo "1581"]
[Annotator "NA"]
[PlyCount "61"]
[EventDate "2019.08.03"]
[EventType "swiss"]
[EventCountry "GER"]
[SourceTitle "playchess.com"]
[Source "ChessBase"]
[SourceQuality "1"]
[TimeControl "40/5400+30:1800+30"]

1. c4 {[%emt 0:00:00]} c5 {[%emt 0:00:00]} 2. g3 {[%emt 0:00:00]} Nc6 {[%emt 0:00:00]} 3. Bg2 {[%emt 0:00:00]} d6 {[%emt 0:00:26]} 4. Nc3 {[%emt 0:00:13]} g6 {[%emt 0:00:18]} 5. e4 {[%emt 0:00:42]} Bg7 {[%emt 0:00:33]} 6. Nge2 {[%emt 0:00:14]} e6 {[%emt 0:00:47]} 7. O-O {[%emt 0:00:57]} Nge7 {[%emt 0:00:24]} 8. d3 {[%emt 0:00:40]} O-O {[%emt 0:00:26]} 9. Bg5 {[%emt 0:01:24]} h6 {[%emt 0:01:28]} 10. Be3 {[%emt 0:00:09]} Kh7 {[%emt 0:01:49]} 11. Qd2 {[%emt 0:01:07]} e5 {[%emt 0:02:35]} 12. a3 {[%emt 0:03:38]} Bd7 {[%emt 0:06:16]} 13. Rab1 {[%emt 0:01:58]} Nd4 {[%emt 0:07:00]} 14. Kh1 {[%emt 0:08:59]} Rb8 {[%emt 0:04:19]} 15. b4 {[%emt 0:09:47]} a6 {[%emt 0:07:05]} 16. bxc5 {[%emt 0:06:29]} dxc5 {[%emt 0:00:40]} 17. Nd5 {[%emt 0:00:40]} Nec6 {[%emt 0:05:11]} 18. Nb6 {[%emt 0:02:35]} Re8 {[%emt 0:06:33]} 19. Nc3 {[%emt 0:02:54]} Be6 {[%emt 0:06:59]} 20. Ncd5 {[%emt 0:01:10]} Bf8 {[%emt 0:06:09]} 21. f4 {[%emt 0:02:53]} Bg7 {[%emt 0:02:37]} 22. Rf2 {[%emt 0:16:54]} Rf8 {[%emt 0:08:25]} 23. Na4 {[%emt 0:03:03]} Qd6 {[%emt 0:09:38]} 24. fxe5 {[%emt 0:02:25]} Nxe5 {[%emt 0:02:53]} 25. Rb6 {[%emt 0:01:58]} Qd8 {[%emt 0:02:18]} 26. h3 {[%emt 0:11:17]} Bxd5 {[%emt 0:04:22]} 27. cxd5 {[%emt 0:00:36]} Nd7 {[%emt 0:00:16]} 28. Rb1 {[%emt 0:01:27]} g5 {[%emt 0:00:40]} 29. Rbf1 {[%emt 0:03:28]} Kg6 {[%emt 0:01:03]} 30. Bxd4 {[%emt 0:03:19]} Bxd4 {[%emt 0:00:12]} 31. Rf5 {[%emt 0:00:56]} 1/2-1/2

[Event "Lueneburg Open-B 2019"]
[Site "Lueneburg"]
[Date "2019.08.03"]
[Round "1.8"]
[White "Rempe, Mieke"]
[Black "Kasipour Azbari, Seyed Arvin"]
[Result "1/2-1/2"]
[ECO "B45"]
[WhiteElo "1558"]
[BlackElo "1765"]
[Annotator "NA"]
[PlyCount "56"]
[EventDate "2019.08.03"]
[EventType "swiss"]
[EventCountry "GER"]
[SourceTitle "playchess.com"]
[Source "ChessBase"]
[SourceQuality "1"]
[TimeControl "40/5400+30:1800+30"]

1. e4 {[%emt 0:00:00]} c5 {[%emt 0:00:21]} 2. Nf3 {[%emt 0:00:12]} e6 {[%emt 0:00:06]} 3. d4 {[%emt 0:00:12]} cxd4 {[%emt 0:00:09]} 4. Nxd4 {[%emt 0:00:11]} Nf6 {[%emt 0:00:04]} 5. Nc3 {[%emt 0:00:11]} Nc6 {[%emt 0:00:08]} 6. Be2 {[%emt 0:01:04]} Bb4 {[%emt 0:00:49]} 7. Bf3 {[%emt 0:01:05]} O-O {[%emt 0:06:43]} 8. O-O {[%emt 0:01:08]} Bxc3 {[%emt 0:02:47]} 9. bxc3 {[%emt 0:00:10]} d5 {[%emt 0:08:35]} 10. Bg5 {[%emt 0:02:44]} dxe4 {[%emt 0:09:37]} 11. Nxc6 {[%emt 0:04:15]} bxc6 {[%emt 0:01:23]} 12. Qxd8 {[%emt 0:00:19]} Rxd8 {[%emt 0:00:20]} 13. Bxf6 {[%emt 0:00:15]} gxf6 {[%emt 0:00:23]} 14. Bxe4 {[%emt 0:00:05]} Ba6 {[%emt 0:01:12]} 15. Rfe1 {[%emt 0:01:09]} f5 {[%emt 0:06:37]} 16. Bf3 {[%emt 0:06:06]} Rac8 {[%emt 0:06:07]} 17. Red1 {[%emt 0:00:39]} Bb5 {[%emt 0:06:53]} 18. Rxd8+ {[%emt 0:00:56]} Rxd8 {[%emt 0:00:45]} 19. a4 {[%emt 0:00:42]} Ba6 {[%emt 0:11:18]} 20. Bxc6 {[%emt 0:00:39]} Rd2 {[%emt 0:03:26]} 21. Bb5 {[%emt 0:00:38]} Bb7 {[%emt 0:01:39]} 22. Bd3 {[%emt 0:02:28]} Be4 {[%emt 0:02:38]} 23. Bxe4 {[%emt 0:00:27]} fxe4 {[%emt 0:00:02]} 24. Rc1 {[%emt 0:00:45]} Rd5 {[%emt 0:00:43]} 25. Rb1 {[%emt 0:01:10]} Rd2 {[%emt 0:00:13]} 26. Rc1 {[%emt 0:01:12]} Rd5 {[%emt 0:00:10]} 27. Rb1 {[%emt 0:02:55]} Rd2 {[%emt 0:00:12]} 28. Rc1 {[%emt 0:01:30]} Rd5 {[%emt 0:00:12]} 1/2-1/2